bitfinex/quotes_ETHUSD_20240716
["timestamp","ask_amount","ask_price","bid_price","bid_amount"]
[1721136603348,2.92781,3415.6,3415.2,2.4714]
[1721136603562,2.92786,3415.5,3415.2,2.4714]
[1721136603775,2.92775,3415.6,3415.2,2.4714]
[1721136604052,2.92793,3415.4,3415.2,2.4714]
[1721136604267,2.928,3415.3,3415.2,2.4714]
[1721136604499,2.928,3415.3,3414.6,2.2973]
[1721136604632,2.928,3415.3,3414.7,0.55]
[1721136605033,2.92808,3415.2,3414.7,0.55]
[1721136605228,2.92808,3415.2,3414.6,2.819897]
[1721136605229,2.92827,3415.0,3414.6,2.819897]
[1721136605530,2.92861,3414.6,3414.0,2.4957]
[1721136605729,2.92886,3414.3,3414.0,2.4957]
[1721136605982,2.92868,3414.5,3414.0,2.4957]
[1721136606296,2.92835,3414.9,3414.0,2.4957]
[1721136606579,2.92843,3414.8,3414.0,5.42475]
[1721136606740,2.92795,3415.4,3414.1,0.8354]
[1721136606966,2.92862,3414.6,3414.0,2.4957]
[1721136607199,2.92883,3414.4,3414.0,2.4957]
[1721136607488,2.9292,3413.9,3413.1,5.45387]
[1721136607692,2.9292,3413.9,3412.2,2.93063]
[1721136607693,2.92964,3413.4,3412.4,2.93046]
[1721136607844,2.92975,3413.3,3412.5,0.835808]
[1721136608045,0.91521718,3414.1,3412.5,3.766178]
[1721136608351,2.92962,3413.5,3412.7,2.93021]
[1721136608551,2.92963,3413.4,3412.7,2.93021]
[1721136608910,3.91521718,3414.3,3412.5,3.766198]
[1721136608911,2.92958,3413.5,3412.5,3.766198]
[1721136609050,2.92977,3413.3,3412.6,0.9193698]
[1721136609250,2.92939,3413.7,3412.6,0.9193698]
[1721136609567,2.92989,3413.1,3412.7,2.2882]
[1721136609762,2.92972,3413.3,3412.7,2.2882]
[1721136610470,2.92986,3413.2,3412.7,2.2882]
[1721136611686,2.92963,3413.4,3412.7,2.2882]
[1721136611982,3.91182377,3414.3,3412.8,3.48007]
[1721136611983,3.0,3414.3,3412.8,3.48007]
[1721136612142,0.91182377,3414.4,3412.8,3.48007]
[1721136612143,2.92934,3413.8,3413.0,2.92995]
[1721136612347,3.0,3414.4,3413.1,3.4798]
[1721136612348,2.92916,3414.0,3413.1,3.4798]
[1721136612548,0.91182377,3414.6,3413.2,0.640984]
[1721136612549,2.92902,3414.1,3413.2,0.640984]
[1721136612773,2.9292,3413.9,3413.3,0.55]
[1721136613387,3.99982377,3414.6,3412.9,2.93004]
[1721136613388,2.9294,3413.7,3412.9,2.93004]
[1721136613683,2.9294,3413.7,3413.0,0.55]
[1721136613856,2.9294,3413.7,3413.1,0.347998]
[1721136614362,2.92903,3414.1,3413.2,3.47974]
[1721136614562,2.92903,3414.1,3413.3,2.92971]
[1721136614873,2.92903,3414.1,3413.5,2.4881]
[1721136615076,2.92882,3414.4,3413.5,2.4881]
[1721136615077,0.91182377,3415.1,3413.8,2.92926]
[1721136615263,2.9283,3415.0,3414.0,2.92909]
[1721136615475,2.92851,3414.7,3413.9,3.277106]
[1721136615682,2.92851,3414.7,3414.0,3.4791]
[1721136615865,2.92851,3414.7,3414.0,0.55]
[1721136616173,2.92795,3415.4,3413.5,2.4881]
[1721136616174,2.92874,3414.5,3413.5,2.4881]
[1721136616351,2.92874,3414.5,3413.6,0.79881]
[1721136616564,2.92874,3414.5,3413.7,2.92936]
[1721136616565,2.92873,3414.5,3413.7,2.92936]
[1721136616798,0.91182377,3415.3,3413.7,2.92936]
[1721136616799,2.9286,3414.6,3413.8,0.55]
[1721136617007,2.92878,3414.4,3413.8,0.55]
[1721136617179,0.91184899,3415.3,3414.0,2.92908]
[1721136617382,0.91184899,3415.3,3414.1,0.55]
[1721136617383,2.92851,3414.8,3414.1,0.55]
[1721136617587,2.92851,3414.8,3414.0,2.92908]
[1721136617588,2.92851,3414.8,3413.7,2.92933]
[1721136617915,3.91184899,3415.4,3413.6,0.24881]
[1721136617916,2.92879,3414.4,3413.8,0.55]
[1721136618214,2.92879,3414.4,3413.7,3.47936]
[1721136618529,2.9291,3414.1,3413.5,2.4881]
[1721136619208,2.92885,3414.3,3413.5,2.4881]
[1721136619411,2.92885,3414.3,3413.5,5.959392]
[1721136619767,2.92885,3414.3,3413.6,0.55]
[1721136620211,2.92871,3414.5,3413.6,0.55]
[1721136620212,2.92894,3414.2,3413.6,0.55]
[1721136621025,2.9286,3414.6,3413.7,2.92932]
[1721136621215,2.9287,3414.5,3413.8,0.55]
[1721136621591,2.92878,3414.4,3413.8,0.55]
[1721136623211,2.92895,3414.2,3413.5,5.41763]
[1721136623387,2.92895,3414.2,3413.6,0.55]
[1721136623793,2.92929,3413.8,3413.5,2.4881]
[1721136624019,2.92929,3413.8,3413.0,2.92989]
[1721136624347,3.05838352,3414.3,3412.9,2.4461]
[1721136624348,2.92974,3413.3,3412.9,2.4461]
[1721136624921,2.92961,3413.5,3412.9,2.4461]
[1721136625122,2.92963,3413.4,3412.9,2.4461]
[1721136625623,2.92971,3413.3,3412.9,2.4461]
[1721136625921,2.92949,3413.6,3412.9,2.4461]
[1721136626134,3.91160463,3414.3,3413.4,2.92962]
[1721136626135,5.92888,3414.3,3413.4,2.92962]
[1721136626283,2.929,3414.2,3413.4,2.92962]
[1721136626487,2.9288,3414.4,3413.5,2.92953]
[1721136626687,1.51766765,3415.2,3413.5,2.92953]
[1721136626688,2.92868,3414.5,3413.7,2.92931]
[1721136626920,2.92861,3414.6,3413.8,0.55]
[1721136627509,2.92812,3415.2,3413.9,0.05857391]
[1721136627695,2.92837,3414.9,3414.2,2.92894]
[1721136628115,6.01586,3415.5,3413.8,0.55]
[1721136628116,2.9283,3415.0,3414.1,2.92901]
[1721136628316,6.01586,3415.5,3413.7,2.92933]
[1721136628317,2.92844,3414.8,3413.7,2.92933]
[1721136628545,6.01586,3415.5,3413.6,5.34923]
[1721136628546,2.92881,3414.4,3413.6,5.34923]
[1721136628837,2.92881,3414.4,3413.6,6.8429996]
[1721136629037,5.85732,3414.6,3413.7,2.92936]
[1721136629240,2.92867,3414.6,3413.7,2.92936]
[1721136629725,2.92853,3414.7,3413.8,0.55]
[1721136629925,2.92853,3414.7,3413.6,3.9135696]
[1721136629926,2.92853,3414.7,3414.0,2.92906]
[1721136630128,3.088,3415.3,3413.7,0.55]
[1721136630129,2.92829,3415.0,3414.1,3.47896]
[1721136630328,4.14322284,3415.6,3414.1,3.47896]
[1721136630329,2.928,3415.3,3414.3,2.4516]
[1721136630541,4.44504584,3415.9,3414.5,2.92862]
[1721136630542,0.91160463,3415.8,3414.5,2.92862]
[1721136630717,2.92809,3415.2,3414.5,2.92862]
[1721136631043,2.92809,3415.2,3414.6,0.55]
[1721136631545,5.85624,3415.2,3414.4,2.92877]
[1721136631717,2.92827,3415.0,3414.3,2.4516]
[1721136632243,2.92854,3414.7,3414.3,2.4516]
[1721136632613,2.92869,3414.5,3413.6,2.4436]
[1721136632911,5.4436,3415.1,3413.6,2.4436]
[1721136632912,6.088,3414.6,3413.6,2.4436]
[1721136633121,2.92885,3414.3,3413.6,2.4436]
[1721136633306,2.92916,3414.0,3413.6,2.4436]
[1721136633931,2.92897,3414.2,3413.6,2.4436]
[1721136634107,2.92878,3414.4,3413.6,5.37305]
[1721136634307,2.92885,3414.3,3413.6,5.37305]
[1721136634954,0.91160463,3415.0,3413.8,2.92923]
[1721136634955,2.92859,3414.7,3413.8,2.92923]
[1721136635115,2.92859,3414.7,3413.9,0.55]
[1721136635311,2.9286,3414.6,3413.9,3.47914]
[1721136635665,2.9286,3414.6,3414.0,2.92911]
[1721136636652,3.0,3415.0,3413.9,0.55]
[1721136636653,2.92846,3414.8,3413.9,0.55]
[1721136636871,2.9286,3414.6,3414.0,0.347921]
[1721136637051,2.92846,3414.8,3414.1,0.55]
[1721136637349,2.92846,3414.8,3414.1,3.47897]
[1721136638118,2.92846,3414.8,3414.2,2.92893]
[1721136638321,0.91160463,3415.4,3414.9,2.92834]
[1721136638619,1.21547284,3415.6,3414.1,0.55]
[1721136638620,2.92748,3415.9,3415.1,5.3778]
[1721136638824,2.92748,3415.9,3415.2,2.92807]
[1721136639062,2.92741,3416.0,3415.3,2.92799]
[1721136639376,0.91160463,3416.6,3415.7,2.92763]
[1721136639377,2.92688,3416.6,3415.7,2.92763]
[1721136639521,2.92688,3416.6,3415.6,2.92768]
[1721136639923,2.92688,3416.6,3415.3,0.8598624]
[1721136639924,2.92759,3415.8,3415.1,2.4497]
[1721136640361,2.98583352,3416.0,3415.1,5.37784]
[1721136640523,2.98583352,3416.0,3415.1,2.4497]
[1721136640524,2.92757,3415.8,3415.1,2.4497]
[1721136640725,0.05838352,3415.7,3415.1,2.4497]
[1721136641190,2.92785,3415.5,3415.1,2.4497]
[1721136641469,3.088,3415.5,3414.5,2.3333]
[1721136641675,2.92843,3414.8,3414.0,2.3483]
[1721136641829,2.92843,3414.8,3414.0,5.27741]
[1721136642230,2.92843,3414.8,3414.1,2.92901]
[1721136643202,2.92825,3415.0,3414.2,2.92894]
[1721136643480,2.92843,3414.8,3414.2,2.92894]
[1721136643973,2.92843,3414.8,3414.0,5.27741]
[1721136644178,2.92843,3414.8,3414.0,2.3483]
[1721136644480,3.088,3415.3,3413.5,2.3483]
[1721136644481,6.14638352,3414.7,3413.5,2.3483]
[1721136644783,6.14638352,3414.7,3412.9,2.93004]
[1721136644784,2.92929,3413.8,3412.9,5.27834]
[1721136644935,2.92911,3414.0,3412.9,2.3483]
[1721136644936,0.05838352,3413.7,3412.9,2.3483]
[1721136645588,2.92971,3413.3,3411.6,2.3227]
[1721136645878,2.92997,3413.1,3412.2,2.93064]
[1721136646377,2.98838352,3413.0,3412.0,2.93081]
[1721136646594,0.05838352,3413.0,3411.7,0.56887]
[1721136646741,0.05838352,3413.0,3411.6,2.3227]
[1721136646742,2.93049,3412.4,3411.6,2.3227]
[1721136647169,2.93063,3412.3,3411.6,2.3227]
[1721136647394,2.98905352,3412.2,3411.6,2.3227]
[1721136647675,2.93089,3412.0,3411.2,2.93151]
[1721136647840,2.93089,3412.0,3411.3,0.525421]
[1721136648280,2.93075,3412.1,3411.3,3.456851]
[1721136648443,2.93085,3412.0,3411.3,3.456851]
[1721136648896,2.93042,3412.5,3411.3,3.456851]
[1721136649069,7.30347284,3412.9,3411.6,2.93116]
[1721136649070,2.93033,3412.6,3411.6,2.93116]
[1721136649254,2.93033,3412.6,3411.8,2.3227]
[1721136649643,2.9303,3412.7,3411.8,2.3227]
[1721136649844,5.05325621,3414.0,3412.1,2.93072]
[1721136649845,0.91160463,3413.4,3412.1,2.93072]
[1721136650044,0.91160463,3413.4,3412.2,0.55]
[1721136650045,2.93006,3412.9,3412.2,0.55]
[1721136650990,2.92974,3413.3,3412.2,3.48057]
[1721136651286,2.93006,3412.9,3412.3,0.641129]
[1721136651489,2.93006,3412.9,3412.2,0.55]
[1721136651792,2.93006,3412.9,3412.1,0.55]
[1721136651952,2.93006,3412.9,3412.1,3.48073]
[1721136652145,3.088,3413.1,3411.8,2.3227]
[1721136652397,3.088,3412.9,3411.8,2.3227]
[1721136652545,2.93082,3412.1,3411.3,2.4786]
[1721136652747,2.93093,3411.9,3411.3,2.4786]
[1721136653481,0.05838352,3412.0,3411.3,2.4786]
[1721136653684,3.088,3412.3,3411.3,2.4786]
[1721136653851,2.931,3411.8,3411.3,2.4786]
[1721136654046,2.93109,3411.7,3411.3,2.4786]
[1721136655371,2.93072,3412.2,3411.3,2.72646]
[1721136655571,2.93072,3412.2,3411.3,5.65783]
[1721136655788,2.93057,3412.3,3411.4,3.48134]
[1721136656148,2.93057,3412.3,3411.5,2.93125]
[1721136656353,2.93025,3412.7,3411.5,2.98986918]
[1721136656590,2.93038,3412.6,3411.8,2.93098]
[1721136656911,2.93024,3412.7,3411.9,3.48086]
[1721136657670,2.93038,3412.6,3411.8,2.931]
[1721136657872,2.93,3413.0,3411.6,0.62663292]
[1721136658072,2.93015,3412.8,3412.0,2.4925]
[1721136658276,2.93006,3412.9,3412.1,2.93073]
[1721136658784,2.92973,3413.3,3412.2,2.93064]
[1721136658988,2.92973,3413.3,3412.2,3.48064]
[1721136659154,2.92973,3413.3,3412.3,2.93057]
[1721136659155,2.92995,3413.1,3412.3,2.93057]
[1721136659355,2.92995,3413.1,3412.4,0.64113]
[1721136660063,2.92932,3413.8,3412.5,2.98899268]
[1721136660064,2.92931,3413.8,3412.5,2.98899268]
[1721136660272,2.9292,3413.9,3412.7,2.2923]
[1721136660455,2.92989,3413.1,3412.7,2.2923]
[1721136660658,2.92999,3413.0,3412.7,2.2923]
[1721136661092,3.088,3414.0,3412.7,2.2923]
[1721136661093,2.92971,3413.3,3412.7,2.2923]
[1721136661253,2.92992,3413.1,3412.7,2.2923]
[1721136661454,2.92977,3413.3,3412.7,2.2923]
[1721136661756,2.92971,3413.3,3412.7,2.52153]
[1721136662313,2.92958,3413.5,3412.7,2.52153]
[1721136663002,2.92968,3413.4,3412.7,2.52153]
[1721136663206,2.92972,3413.3,3412.7,2.2923]
[1721136663362,2.92986,3413.2,3412.7,2.2923]
[1721136663563,2.9299,3413.1,3412.7,2.2923]
[1721136664387,2.93,3413.0,3412.7,2.2923]
[1721136664701,2.92998,3413.0,3412.7,2.2923]
[1721136665481,2.93023,3412.7,3412.2,2.306]
[1721136666073,3.088,3413.3,3412.2,2.306]
[1721136666074,2.93016,3412.8,3412.2,2.306]
[1721136666491,2.93016,3412.8,3412.2,3.422764]
[1721136666876,2.92992,3413.1,3412.3,0.05860515]
[1721136667072,2.92963,3413.4,3412.2,3.422764]
[1721136667274,3.366,3414.7,3412.6,2.93025]
[1721136667275,2.92946,3413.6,3412.6,2.93025]
[1721136667595,2.92954,3413.5,3412.6,2.93025]
[1721136667758,2.92954,3413.5,3412.6,2.98884878]
[1721136667963,2.92954,3413.6,3412.9,2.3283]
[1721136668586,2.92954,3413.5,3412.9,2.3283]
[1721136668787,2.92914,3414.0,3413.0,0.55]
[1721136669108,3.088,3414.3,3413.0,3.47992]
[1721136669109,2.92938,3413.7,3413.0,3.47992]
[1721136669909,2.92938,3413.7,3413.0,0.55]
[1721136670094,2.92938,3413.7,3412.9,2.3283]
[1721136670095,2.92955,3413.5,3412.9,2.3283]
[1721136670299,3.088,3414.3,3412.9,2.3283]
[1721136670300,2.92986,3413.2,3412.9,2.3283]
[1721136670803,2.92997,3413.0,3412.9,2.3283]
[1721136670966,2.92997,3413.0,3412.4,2.3641]
[1721136671289,2.93006,3412.9,3412.4,2.3641]
[1721136671664,2.92983,3413.2,3412.4,2.3641]
[1721136671866,2.92989,3413.1,3412.4,2.3641]
[1721136672102,2.92989,3413.1,3412.4,3.486631]
[1721136672306,2.93006,3412.9,3412.4,2.3641]
[1721136672473,2.9304,3412.5,3412.4,2.3641]
[1721136672806,2.93033,3412.6,3412.4,2.3641]
[1721136673105,2.9304,3412.5,3412.4,2.3641]
[1721136673614,3.088,3413.1,3411.6,5.29096]
[1721136673615,2.93051,3412.4,3411.6,5.29096]
[1721136673815,2.93051,3412.4,3411.7,2.93108]
[1721136674031,2.93051,3412.4,3411.7,3.753284]
[1721136674897,2.93032,3412.6,3411.7,3.753284]
[1721136674898,2.93032,3412.6,3411.8,3.48099]
[1721136675203,2.93002,3413.0,3412.3,5.29034]
[1721136675533,2.93028,3412.7,3412.3,2.3598]
[1721136675676,2.93037,3412.6,3412.3,2.3598]
[1721136676577,2.93056,3412.4,3411.7,6.155284]
[1721136676834,2.93056,3412.4,3411.8,3.9155284]
[1721136677175,2.93056,3412.4,3411.7,5.33308]
[1721136677176,2.93056,3412.4,3411.7,2.402]
[1721136677486,2.93067,3412.2,3411.7,2.402]
[1721136678013,3.0,3413.3,3411.7,2.402]
[1721136678014,2.93034,3412.6,3411.7,2.402]
[1721136678228,2.93034,3412.6,3411.7,5.33304]
[1721136678229,2.93053,3412.4,3411.7,5.33304]
[1721136678731,2.93058,3412.3,3411.7,3.228429]
[1721136678882,2.93069,3412.2,3411.7,2.402]
[1721136679080,2.93054,3412.4,3411.7,2.402]
[1721136679422,2.93054,3412.4,3411.1,2.93153]
[1721136679423,2.93078,3412.1,3411.2,2.402]
[1721136679711,3.0,3412.9,3411.6,2.93115]
[1721136679712,2.93055,3412.4,3411.6,2.93115]
[1721136680091,3.088,3413.1,3411.8,5.32565]
[1721136680092,2.93018,3412.8,3411.8,5.32565]
[1721136680291,0.90864925,3413.5,3412.0,2.93078]
[1721136680292,2.93007,3412.9,3412.0,2.93078]
[1721136680610,2.93019,3412.8,3412.0,2.93078]
[1721136680989,3.0,3413.4,3412.0,2.2666]
[1721136681190,2.92995,3413.1,3412.1,0.55]
[1721136681391,2.93006,3412.9,3412.1,4.474577]
[1721136681786,5.92949,3413.6,3412.2,2.93065]
[1721136682026,2.92993,3413.1,3412.3,3.48054]
[1721136682416,2.92998,3413.0,3412.3,0.55]
[1721136682595,2.92998,3413.0,3412.2,0.55]
[1721136682803,5.92949,3413.6,3412.0,5.19739]
[1721136682804,2.92981,3413.2,3412.0,2.2666]
[1721136683008,9.01749,3413.6,3412.0,2.2666]
[1721136683009,2.93029,3412.7,3412.0,5.19742]
[1721136683322,2.93029,3412.7,3412.1,0.895409]
[1721136683638,2.93029,3412.7,3412.0,2.2666]
[1721136683786,2.93044,3412.5,3412.0,2.2666]
[1721136685047,2.93032,3412.6,3412.0,2.2666]
[1721136685335,2.93022,3412.8,3412.1,3.48067]
[1721136685688,2.92999,3413.0,3412.2,2.93065]
[1721136685917,2.92999,3413.0,3412.3,0.867792]
[1721136686114,2.92999,3413.0,3412.3,3.798332]
[1721136686431,2.92983,3413.2,3412.3,3.798332]
[1721136686581,2.92974,3413.3,3412.3,3.798332]
[1721136686786,2.92989,3413.1,3412.3,3.798332]
[1721136687094,2.93003,3413.0,3412.4,0.7279002]
[1721136687308,2.93019,3412.8,3412.1,0.55]
[1721136687797,2.93024,3412.7,3412.1,0.55]
[1721136689802,3.840157,3412.9,3412.0,2.2666]
[1721136689803,0.910087,3412.9,3412.0,2.2666]
[1721136689988,2.93062,3412.3,3412.0,2.2666]
[1721136690427,2.93044,3412.5,3412.0,2.2666]
[1721136690428,2.93055,3412.4,3412.0,2.2666]
[1721136690644,2.93044,3412.5,3412.0,2.2666]
[1721136690923,3.840527,3412.5,3412.0,2.2666]
[1721136691089,2.93044,3412.5,3412.0,2.2666]
[1721136691724,2.9306,3412.3,3412.0,2.2666]
[1721136692489,2.93068,3412.2,3411.4,2.2674]
[1721136692723,2.93088,3412.0,3411.4,2.2674]
[1721136693221,5.86179,3412.0,3411.4,2.2674]
[1721136693446,2.93091,3411.9,3411.4,2.2674]
[1721136693592,3.8435059,3412.2,3411.4,3.087283]
[1721136693936,2.93088,3412.0,3411.4,3.087283]
[1721136694152,5.86179,3412.0,3411.4,2.2674]
[1721136694328,3.8434959,3412.2,3411.5,2.93125]
[1721136694500,2.93069,3412.2,3411.6,0.55]
[1721136695190,0.9128059,3412.3,3411.6,0.55]
[1721136695811,0.9128059,3412.3,3411.6,3.4811]
[1721136696008,0.9128059,3412.4,3411.7,0.867975]
[1721136696802,3.8433159,3412.4,3411.7,0.867975]
[1721136696996,3.8434359,3412.3,3411.6,0.55]
[1721136697306,3.8434359,3412.3,3411.6,3.48116]
[1721136698897,0.9128059,3412.3,3411.6,3.48109]
[1721136699150,0.9128059,3412.3,3411.9,2.93086]
[1721136699296,0.9128059,3412.5,3412.0,3.48081]
[1721136699631,1.21707454,3412.6,3412.2,2.2741]
[1721136699632,0.9128059,3412.6,3412.2,2.2741]
[1721136700203,0.9128059,3412.7,3412.2,2.2741]
[1721136700404,0.9128059,3412.6,3412.2,2.2741]
[1721136700630,0.9128059,3412.5,3412.2,2.2741]
[1721136701555,0.9128059,3412.5,3412.2,5.20469]
[1721136701831,0.9128059,3413.1,3412.9,2.93005]
[1721136702132,1.52154403,3413.4,3412.9,2.93005]
[1721136702133,0.9128059,3413.4,3412.9,2.93005]
[1721136702299,0.9128059,3413.4,3413.2,2.92975]
[1721136702499,1.52154403,3413.8,3413.3,2.43]
[1721136702500,0.9128059,3413.5,3413.3,2.43]
[1721136703100,1.21707454,3413.6,3413.3,2.43]
[1721136703101,0.9128059,3413.4,3413.3,2.43]
[1721136703818,0.9128059,3413.5,3413.3,2.43]
[1721136704212,1.21707454,3413.6,3413.4,2.9882193]
[1721136704213,0.91266013,3413.6,3413.4,2.9882193]
[1721136704413,0.91266013,3414.2,3413.9,2.92912]
[1721136704709,0.91266013,3414.2,3413.5,0.84882193]
[1721136704710,0.91266013,3414.5,3414.4,2.92877]
[1721136704909,1.82585283,3415.2,3414.4,2.92877]
[1721136704910,0.91266013,3415.0,3414.5,2.92868]
[1721136705298,0.91266013,3415.1,3414.6,0.55]
[1721136705500,0.91266013,3415.4,3414.7,2.2845]
[1721136705701,0.91266013,3415.6,3415.0,2.92821]
[1721136706006,0.91266013,3415.6,3415.1,0.55]
[1721136706007,0.91266013,3415.5,3415.1,0.55]
[1721136706228,0.91266013,3415.4,3415.1,0.55]
[1721136706408,0.91266013,3415.6,3415.1,0.55]
[1721136706830,3.84032013,3415.7,3415.1,0.55]
[1721136707522,0.91266013,3415.8,3415.1,0.55]
[1721136707721,3.84019013,3415.9,3415.1,0.55]
[1721136708440,1.21707454,3416.1,3415.1,0.926166]
[1721136708441,0.91266013,3416.1,3415.1,0.926166]
[1721136708614,3.088,3416.7,3415.1,0.926166]
[1721136708615,0.91266013,3416.6,3415.6,2.4316]
[1721136708827,2.92721,3416.3,3415.6,2.4316]
[1721136709020,1.21707454,3416.7,3415.6,2.4316]
[1721136709021,2.92722,3416.2,3415.6,2.4316]
[1721136709604,2.92714,3416.3,3415.6,2.4316]
[1721136710257,2.92697,3416.5,3415.6,2.4316]
[1721136710464,2.92681,3416.7,3415.6,2.4316]
[1721136710465,2.92681,3416.7,3415.8,2.92756]
[1721136710757,1.21707454,3417.3,3415.8,2.92756]
[1721136710758,2.92689,3416.6,3415.8,2.92756]
[1721136710980,2.92689,3416.6,3415.9,0.55]
[1721136711192,2.92655,3417.0,3415.9,0.55]
[1721136711341,0.90842832,3417.5,3416.0,0.40629824]
[1721136711543,0.1495902,3418.0,3416.4,2.92705]
[1721136711544,2.9262,3417.4,3416.4,2.92705]
[1721136712124,2.92612,3417.5,3416.5,0.55]
[1721136712403,2.92596,3417.7,3416.7,2.92679]
[1721136712541,0.1495902,3418.0,3416.9,2.92662]
[1721136712542,2.92585,3417.8,3416.9,2.92662]
[1721136712746,0.1495902,3418.0,3416.8,0.347679]
[1721136712984,0.1495902,3418.0,3417.3,2.92628]
[1721136713293,0.1495902,3418.0,3417.1,2.92645]
[1721136713445,0.1495902,3418.0,3417.2,0.55]
[1721136713446,2.92584,3417.9,3417.2,0.55]
[1721136713639,3.0752802,3418.0,3417.2,0.55]
[1721136713850,2.92578,3417.9,3416.8,0.347679]
[1721136714064,2.92596,3417.7,3416.9,3.4995169]
[1721136714267,2.92596,3417.7,3417.0,0.55]
[1721136714464,2.92604,3417.6,3417.0,0.55]
[1721136714651,2.92604,3417.6,3416.9,0.55]
[1721136714881,0.1495902,3418.0,3416.9,2.92661]
[1721136714882,2.92596,3417.7,3416.9,2.92661]
[1721136715045,0.1495902,3418.0,3416.8,0.55]
[1721136715241,2.92582,3417.9,3416.9,3.81241]
[1721136715445,2.92582,3417.9,3417.0,0.55]
[1721136715446,2.92602,3417.7,3417.0,0.55]
[1721136715861,2.92603,3417.6,3417.0,0.55]
[1721136716783,2.92626,3417.4,3416.7,2.4545]
[1721136716963,2.92626,3417.4,3416.8,0.55]
[1721136717373,0.1495902,3418.0,3416.8,0.55]
[1721136717564,2.92591,3417.8,3416.9,2.92662]
[1721136717760,2.92591,3417.8,3417.0,0.55]
[1721136717967,2.92591,3417.8,3417.1,0.402662]
[1721136718284,0.1495902,3418.0,3417.1,0.402662]
[1721136718485,0.1495902,3418.0,3417.2,3.47631]
[1721136719281,2.92577,3417.9,3417.2,0.55]
[1721136719483,0.1495902,3418.0,3417.2,3.47637]
[1721136719682,0.1495902,3418.0,3417.3,0.6805562]
[1721136719887,0.1495902,3418.0,3417.5,2.2941]
[1721136720088,0.1495902,3418.0,3417.6,0.55]
[1721136720384,0.1495902,3418.0,3417.5,5.22015]
[1721136720385,3.0752802,3418.0,3417.5,2.2941]
[1721136720786,0.1495902,3418.0,3417.5,5.22019]
[1721136720985,0.1495902,3418.0,3417.6,1.43269462]
[1721136721287,0.1495902,3418.0,3417.6,4.35870462]
[1721136721592,0.1495902,3418.0,3417.8,2.92585]
[1721136721757,0.1495902,3418.0,3417.9,0.55]
[1721136722088,0.1495902,3418.0,3417.9,5.79827]
[1721136722253,0.1495902,3418.0,3417.9,7.09555146]
[1721136722456,0.1495902,3418.0,3417.9,10.02132146]
[1721136722650,2.92466,3419.2,3418.1,2.92557]
[1721136722996,2.92413,3419.9,3418.4,5.19664]
[1721136722997,2.9244,3419.5,3418.4,5.19664]
[1721136723165,2.9244,3419.5,3418.7,2.92503]
[1721136723166,2.92444,3419.5,3418.7,2.92503]
[1721136723387,2.92444,3419.5,3418.8,1.190013]
[1721136723565,2.92474,3419.1,3418.8,0.640013]
[1721136723752,2.92388,3420.2,3418.4,5.19663]
[1721136723753,2.92458,3419.3,3418.4,5.19663]
[1721136723957,2.92443,3419.5,3418.6,2.9251]
[1721136724300,3.088,3420.3,3419.3,2.92455]
[1721136724301,2.92389,3420.1,3419.3,2.92455]
[1721136724587,2.92368,3420.4,3419.6,3.366]
[1721136724792,2.92431,3419.6,3419.4,2.4053]
[1721136724951,0.05838352,3420.3,3419.4,2.4053]
[1721136725151,2.92337,3420.8,3418.5,2.2805]
[1721136725152,2.9249,3419.0,3418.5,2.2805]
[1721136725356,2.92449,3419.4,3418.5,2.50855]
[1721136725578,2.92449,3419.4,3418.5,5.43379]
[1721136725914,0.05838352,3420.4,3418.5,5.43379]
[1721136725915,2.92407,3419.9,3418.8,2.92496]
[1721136726095,2.9243,3419.7,3418.8,2.92496]
[1721136726258,2.9243,3419.7,3418.5,2.50855]
[1721136726259,2.92395,3420.1,3419.1,2.92473]
[1721136726585,2.92373,3420.3,3419.1,2.92473]
[1721136726797,2.92398,3420.0,3419.2,0.55]
[1721136726977,2.9242,3419.8,3419.2,0.55]
[1721136727196,2.92398,3420.0,3419.2,0.55]
[1721136727398,2.92447,3419.5,3419.0,2.2808]
[1721136727810,2.92458,3419.3,3419.0,2.2808]
[1721136727987,6.366,3420.7,3419.0,2.2808]
[1721136727988,2.92416,3419.8,3419.0,2.2808]
[1721136728189,2.92382,3420.2,3419.1,3.47467]
[1721136728417,2.92347,3420.6,3419.3,3.366]
[1721136728600,2.92338,3420.7,3419.7,2.92423]
[1721136728785,2.92337,3420.8,3420.1,2.4853]
[1721136729116,2.92339,3420.7,3420.1,2.4853]
[1721136729276,2.92339,3420.7,3420.2,0.55]
[1721136729898,2.92361,3420.5,3420.1,2.4853]
[1721136730112,2.92369,3420.4,3420.1,2.4853]
[1721136730409,2.92317,3421.0,3420.1,2.4853]
[1721136730410,2.92338,3420.7,3420.1,2.4853]
[1721136730610,2.92312,3421.0,3420.1,3.318641]
[1721136730611,2.92325,3420.9,3420.1,3.318641]
[1721136730816,2.92339,3420.7,3420.1,3.318641]
[1721136731011,2.92371,3420.4,3420.1,2.4853]
[1721136731254,3.0724202,3421.4,3420.1,2.4853]
[1721136731255,3.088,3421.2,3420.1,2.4853]
[1721136731539,2.92363,3420.4,3419.5,5.40963]
[1721136731842,2.92394,3420.1,3419.6,0.55]
[1721136732004,2.92399,3420.0,3419.6,0.55]
[1721136732425,2.92361,3420.5,3419.6,0.55]
[1721136732632,2.92338,3420.7,3419.8,2.92414]
[1721136732841,3.0723702,3421.4,3419.8,2.92414]
[1721136732842,2.9233,3420.8,3419.9,0.55]
[1721136733005,2.9233,3420.8,3419.9,3.47404]